[Event "Late-Titled-Tuesday-Blitz-April-02-2024"]
[Site "Chess.com"]
[Date "2024.04.02"]
[Round "4"]
[White "ATM622"]
[Black "NikitaShnadrygin"]
[Result "0-1"]
[WhiteElo "2533"]
[BlackElo "2667"]
[TimeControl "180+1"]
[EndTime "14:37:48 PDT"]
[Termination "NikitaShnadrygin won on time"]

1. d4 {[%clk 0:03:00.9]} 1... d5 {[%clk 0:02:56.4]} 2. c4 {[%clk 0:03:00.8]}
2... Nc6 {[%clk 0:02:57.1]} 3. Nf3 {[%clk 0:03:00.5]} 3... Bg4 {[%clk
0:02:56.9]} 4. cxd5 {[%clk 0:02:58.8]} 4... Bxf3 {[%clk 0:02:56.8]} 5. dxc6
{[%clk 0:02:58.8]} 5... Bxc6 {[%clk 0:02:57.7]} 6. Nc3 {[%clk 0:02:57.4]} 6...
Nf6 {[%clk 0:02:58.3]} 7. f3 {[%clk 0:02:54.9]} 7... e5 {[%clk 0:02:58.6]} 8.
dxe5 {[%clk 0:02:52.5]} 8... Nd7 {[%clk 0:02:59]} 9. e4 {[%clk 0:02:51.5]} 9...
Nxe5 {[%clk 0:02:58.8]} 10. Bf4 {[%clk 0:02:50.7]} 10... Bd6 {[%clk 0:02:56.6]}
11. Bb5 {[%clk 0:02:44.9]} 11... Bxb5 {[%clk 0:02:48.7]} 12. Nxb5 {[%clk
0:02:40.3]} 12... Bb4+ {[%clk 0:02:49]} 13. Nc3 {[%clk 0:02:38.7]} 13... Nd3+
{[%clk 0:02:48.1]} 14. Kf1 {[%clk 0:02:29]} 14... Bxc3 {[%clk 0:02:46.9]} 15.
Qa4+ {[%clk 0:02:16.9]} 15... c6 {[%clk 0:02:32.2]} 16. Rd1 {[%clk 0:02:11.8]}
16... Bxb2 {[%clk 0:01:01.5]} 17. Qc2 {[%clk 0:02:08.5]} 17... Qf6 {[%clk
0:00:54.4]} 18. Rxd3 {[%clk 0:02:05.6]} 18... Qxf4 {[%clk 0:00:52.5]} 19. Qxb2
{[%clk 0:02:05]} 19... O-O {[%clk 0:00:52.9]} 20. Kf2 {[%clk 0:01:55.7]} 20...
Rad8 {[%clk 0:00:53.1]} 21. g3 {[%clk 0:01:46.9]} 21... Qc7 {[%clk 0:00:51.4]}
22. Rhd1 {[%clk 0:01:43.8]} 22... Rxd3 {[%clk 0:00:33.1]} 23. Rxd3 {[%clk
0:01:43.2]} 23... h6 {[%clk 0:00:33.7]} 24. e5 {[%clk 0:01:38.6]} 24... Qb6+
{[%clk 0:00:29.4]} 25. Qxb6 {[%clk 0:01:37.1]} 25... axb6 {[%clk 0:00:30.3]} 26.
Rd7 {[%clk 0:01:35.5]} 26... Ra8 {[%clk 0:00:29.5]} 27. Rxb7 {[%clk 0:01:33.9]}
27... Rxa2+ {[%clk 0:00:30.1]} 28. Kg1 {[%clk 0:01:31.8]} 28... Rb2 {[%clk
0:00:29.9]} 29. f4 {[%clk 0:01:31.7]} 29... g6 {[%clk 0:00:28.8]} 30. h3 {[%clk
0:01:26.3]} 30... h5 {[%clk 0:00:27.9]} 31. Rb8+ {[%clk 0:01:04.7]} 31... Kg7
{[%clk 0:00:27.4]} 32. Rb7 {[%clk 0:01:03.8]} 32... Kf8 {[%clk 0:00:27.7]} 33.
Kh1 {[%clk 0:00:51.8]} 33... c5 {[%clk 0:00:27.6]} 34. Rc7 {[%clk 0:00:44.2]}
34... Ke8 {[%clk 0:00:25.5]} 35. Kg1 {[%clk 0:00:30.4]} 35... Rc2 {[%clk
0:00:21.8]} 36. Rb7 {[%clk 0:00:28.6]} 36... Rb2 {[%clk 0:00:22.1]} 37. Rc7
{[%clk 0:00:28.5]} 37... Rb4 {[%clk 0:00:19.4]} 38. Kg2 {[%clk 0:00:23.6]} 38...
c4 {[%clk 0:00:19.9]} 39. Kf3 {[%clk 0:00:15.6]} 39... b5 {[%clk 0:00:19.1]} 40.
Ke4 {[%clk 0:00:14.3]} 40... Rb3 {[%clk 0:00:19.5]} 41. g4 {[%clk 0:00:07.1]}
41... Rxh3 {[%clk 0:00:19.6]} 42. gxh5 {[%clk 0:00:06.2]} 42... gxh5 {[%clk
0:00:20.1]} 43. Kf5 {[%clk 0:00:05.7]} 43... c3 {[%clk 0:00:17.3]} 44. Kf6
{[%clk 0:00:04.8]} 44... b4 {[%clk 0:00:17.9]} 0-1

[Event "Late-Titled-Tuesday-Blitz-April-02-2024"]
[Site "Chess.com"]
[Date "2024.04.02"]
[Round "4"]
[White "Supelyel"]
[Black "Szachulec75"]
[Result "1-0"]
[WhiteElo "2416"]
[BlackElo "2045"]
[TimeControl "180+1"]
[EndTime "14:37:48 PDT"]
[Termination "Supelyel won by resignation"]

1. c4 {[%clk 0:02:52.9]} 1... Nf6 {[%clk 0:02:58.5]} 2. Nc3 {[%clk 0:02:46.2]}
2... g6 {[%clk 0:02:57.2]} 3. g3 {[%clk 0:02:46.3]} 3... Bg7 {[%clk 0:02:57.3]}
4. Bg2 {[%clk 0:02:46.7]} 4... d6 {[%clk 0:02:57.7]} 5. Nf3 {[%clk 0:02:46.7]}
5... O-O {[%clk 0:02:58]} 6. O-O {[%clk 0:02:47.1]} 6... e5 {[%clk 0:02:55.5]}
7. d3 {[%clk 0:02:37.7]} 7... Nc6 {[%clk 0:02:52.5]} 8. Bg5 {[%clk 0:02:37.4]}
8... Bg4 {[%clk 0:02:52.6]} 9. h3 {[%clk 0:02:36.2]} 9... Bxf3 {[%clk
0:02:50.8]} 10. Bxf3 {[%clk 0:02:37.1]} 10... h6 {[%clk 0:02:50.8]} 11. Bxf6
{[%clk 0:02:36.3]} 11... Bxf6 {[%clk 0:02:49]} 12. Rb1 {[%clk 0:02:35.4]} 12...
Bg7 {[%clk 0:02:48.5]} 13. b4 {[%clk 0:02:32.2]} 13... Rb8 {[%clk 0:02:49]} 14.
b5 {[%clk 0:02:32.4]} 14... Nd4 {[%clk 0:02:49]} 15. Bg2 {[%clk 0:02:32.7]}
15... f5 {[%clk 0:02:42.5]} 16. e3 {[%clk 0:02:32.2]} 16... Ne6 {[%clk
0:02:39.2]} 17. Nd5 {[%clk 0:02:02.4]} 17... Kh8 {[%clk 0:02:30.3]} 18. Qa4
{[%clk 0:01:57]} 18... Ra8 {[%clk 0:02:25.4]} 19. Rfe1 {[%clk 0:01:43.4]} 19...
g5 {[%clk 0:02:15.2]} 20. f4 {[%clk 0:01:42.3]} 20... gxf4 {[%clk 0:02:12.6]}
21. exf4 {[%clk 0:01:33.5]} 21... Rg8 {[%clk 0:02:05.2]} 22. Kh2 {[%clk
0:01:25.7]} 22... Bf8 {[%clk 0:01:56.1]} 23. Qc2 {[%clk 0:01:07.7]} 23... Nd4
{[%clk 0:01:41.5]} 24. Qf2 {[%clk 0:01:07.1]} 24... c6 {[%clk 0:01:32.1]} 25.
bxc6 {[%clk 0:00:58.2]} 25... bxc6 {[%clk 0:01:30.8]} 26. Nc3 {[%clk 0:00:40.6]}
26... Qc7 {[%clk 0:01:30.8]} 27. Ne2 {[%clk 0:00:37.8]} 27... Ne6 {[%clk
0:01:23.9]} 28. fxe5 {[%clk 0:00:35.9]} 28... dxe5 {[%clk 0:01:22.2]} 29. Qxf5
{[%clk 0:00:36.2]} 29... Re8 {[%clk 0:01:07.5]} 30. Be4 {[%clk 0:00:35.3]} 30...
Ng5 {[%clk 0:01:05.1]} 31. h4 {[%clk 0:00:32.9]} 31... Nxe4 {[%clk 0:01:04.5]}
32. Qxe4 {[%clk 0:00:33.8]} 32... Bc5 {[%clk 0:00:44.2]} 33. Rf1 {[%clk
0:00:31.7]} 33... Rg7 {[%clk 0:00:37.1]} 34. Rf5 {[%clk 0:00:27.1]} 34... Reg8
{[%clk 0:00:31.3]} 35. Rbf1 {[%clk 0:00:26.7]} 35... Bd6 {[%clk 0:00:23.4]} 36.
Nc3 {[%clk 0:00:24.1]} 36... Rg4 {[%clk 0:00:22.7]} 37. Qe3 {[%clk 0:00:23.5]}
37... Rxg3 {[%clk 0:00:22.5]} 38. Qxh6+ {[%clk 0:00:21.2]} 38... Qh7 {[%clk
0:00:22.4]} 39. Rh5 {[%clk 0:00:15]} 39... R3g7 {[%clk 0:00:16.5]} 40. Qxh7+
{[%clk 0:00:13.8]} 40... Rxh7 {[%clk 0:00:16.2]} 41. Rxh7+ {[%clk 0:00:14.7]}
41... Kxh7 {[%clk 0:00:16.6]} 42. Ne4 {[%clk 0:00:15.4]} 42... Be7 {[%clk
0:00:16.3]} 43. Kh3 {[%clk 0:00:15.3]} 43... Rg7 {[%clk 0:00:17.2]} 44. Rf5
{[%clk 0:00:15.1]} 44... Bd8 {[%clk 0:00:16]} 45. Rxe5 {[%clk 0:00:15.6]} 45...
Bc7 {[%clk 0:00:16.3]} 46. Rg5 {[%clk 0:00:15.7]} 46... Rd7 {[%clk 0:00:15.8]}
47. Nc5 {[%clk 0:00:14.4]} 47... Re7 {[%clk 0:00:15.3]} 48. Rf5 {[%clk
0:00:13.1]} 48... Bb6 {[%clk 0:00:14.9]} 49. Ne4 {[%clk 0:00:12.9]} 49... Rd7
{[%clk 0:00:14.4]} 50. Nf6+ {[%clk 0:00:13.1]} 50... Kg6 {[%clk 0:00:14.2]} 51.
Nxd7 {[%clk 0:00:14]} 51... Kxf5 {[%clk 0:00:14.4]} 52. Nxb6 {[%clk 0:00:14.8]}
52... axb6 {[%clk 0:00:14.4]} 53. h5 {[%clk 0:00:15.4]} 1-0

[Event "Late-Titled-Tuesday-Blitz-April-02-2024"]
[Site "Chess.com"]
[Date "2024.04.02"]
[Round "4"]
[White "GodzillaChessYoutube"]
[Black "Truequitos"]
[Result "0-1"]
[WhiteElo "2685"]
[BlackElo "2569"]
[TimeControl "180+1"]
[EndTime "14:37:53 PDT"]
[Termination "Truequitos won by checkmate"]

1. c4 {[%clk 0:03:00]} 1... e5 {[%clk 0:02:59.1]} 2. e3 {[%clk 0:03:00]} 2...
Nc6 {[%clk 0:02:59.3]} 3. Nc3 {[%clk 0:03:00.1]} 3... g6 {[%clk 0:02:59.7]} 4.
g3 {[%clk 0:02:59.9]} 4... Bg7 {[%clk 0:03:00.2]} 5. Bg2 {[%clk 0:03:00.4]} 5...
d6 {[%clk 0:03:00.8]} 6. Nge2 {[%clk 0:03:00.8]} 6... Be6 {[%clk 0:03:01.2]} 7.
b3 {[%clk 0:03:00.2]} 7... Nge7 {[%clk 0:02:58.7]} 8. Nd5 {[%clk 0:02:37]} 8...
Bxd5 {[%clk 0:02:41.3]} 9. cxd5 {[%clk 0:02:36.6]} 9... Nb4 {[%clk 0:02:40.9]}
10. Nc3 {[%clk 0:02:12.9]} 10... Nd3+ {[%clk 0:02:36.7]} 11. Ke2 {[%clk
0:02:12.9]} 11... Nxc1+ {[%clk 0:02:34.7]} 12. Rxc1 {[%clk 0:02:13.8]} 12... c6
{[%clk 0:02:26.8]} 13. h4 {[%clk 0:02:01.2]} 13... O-O {[%clk 0:02:20.8]} 14. h5
{[%clk 0:02:01]} 14... Qd7 {[%clk 0:02:14.9]} 15. Bh3 {[%clk 0:01:51.7]} 15...
Qd8 {[%clk 0:01:33.7]} 16. hxg6 {[%clk 0:01:49.5]} 16... hxg6 {[%clk 0:01:31.7]}
17. Bg2 {[%clk 0:01:48.4]} 17... f5 {[%clk 0:01:22.6]} 18. Qg1 {[%clk
0:01:46.6]} 18... Qa5 {[%clk 0:01:05]} 19. dxc6 {[%clk 0:01:42.8]} 19... bxc6
{[%clk 0:01:05.8]} 20. Rh4 {[%clk 0:01:42.7]} 20... d5 {[%clk 0:00:54.6]} 21.
Ra4 {[%clk 0:01:37.5]} 21... Qd8 {[%clk 0:00:47.4]} 22. Qh2 {[%clk 0:01:34.2]}
22... Qd6 {[%clk 0:00:43.5]} 23. Rh1 {[%clk 0:01:20.6]} 23... d4 {[%clk
0:00:34.7]} 24. exd4 {[%clk 0:01:13.3]} 24... exd4 {[%clk 0:00:33.9]} 25. Nb1
{[%clk 0:01:13.2]} 25... Nd5 {[%clk 0:00:20.6]} 26. Kd1 {[%clk 0:01:10.3]} 26...
Rfe8 {[%clk 0:00:16.5]} 27. Na3 {[%clk 0:01:08.1]} 27... Qe5 {[%clk 0:00:15]}
28. Nc4 {[%clk 0:00:48.1]} 28... Qe2+ {[%clk 0:00:13.4]} 29. Kc1 {[%clk
0:00:48.5]} 29... Nc3 {[%clk 0:00:10.6]} 30. Bxc6 {[%clk 0:00:39.7]} 30... Rac8
{[%clk 0:00:07.6]} 31. Bxe8 {[%clk 0:00:38.8]} 31... Ne4 {[%clk 0:00:05.3]} 32.
Qh7+ {[%clk 0:00:33.5]} 32... Kf8 {[%clk 0:00:05.1]} 33. Kb1 {[%clk 0:00:23.7]}
33... Rxc4 {[%clk 0:00:03.2]} 34. Rxc4 {[%clk 0:00:16]} 34... Nxd2+ {[%clk
0:00:03.3]} 35. Kc1 {[%clk 0:00:11.7]} 35... Nxc4 {[%clk 0:00:03.1]} 36. bxc4
{[%clk 0:00:11.3]} 36... d3 {[%clk 0:00:02.5]} 37. Qxg6 {[%clk 0:00:09]} 37...
Qc2# {[%clk 0:00:01.9]} 0-1

[Event "Late-Titled-Tuesday-Blitz-April-02-2024"]
[Site "Chess.com"]
[Date "2024.04.02"]
[Round "4"]
[White "Aygehovit1992"]
[Black "Njal28"]
[Result "0-1"]
[WhiteElo "2868"]
[BlackElo "3063"]
[TimeControl "180+1"]
[EndTime "14:38:01 PDT"]
[Termination "Njal28 won by checkmate"]

1. e4 {[%clk 0:03:00.9]} 1... c5 {[%clk 0:02:59.8]} 2. Nf3 {[%clk 0:03:01.5]}
2... Nc6 {[%clk 0:03:00.1]} 3. Bb5 {[%clk 0:03:01.5]} 3... e6 {[%clk 0:03:00.4]}
4. c3 {[%clk 0:03:00.9]} 4... d5 {[%clk 0:02:58.1]} 5. exd5 {[%clk 0:02:59.3]}
5... Qxd5 {[%clk 0:02:59]} 6. d4 {[%clk 0:02:51.1]} 6... cxd4 {[%clk 0:02:59.1]}
7. Bxc6+ {[%clk 0:02:42.8]} 7... Qxc6 {[%clk 0:02:54.6]} 8. Qxd4 {[%clk
0:02:42.8]} 8... Nf6 {[%clk 0:02:51.2]} 9. Be3 {[%clk 0:02:42]} 9... Be7 {[%clk
0:02:38.6]} 10. O-O {[%clk 0:02:35]} 10... O-O {[%clk 0:02:38.8]} 11. Nbd2
{[%clk 0:02:35.3]} 11... b6 {[%clk 0:02:34.4]} 12. Ne5 {[%clk 0:02:33.2]} 12...
Qd5 {[%clk 0:02:22.2]} 13. c4 {[%clk 0:02:16.9]} 13... Qxd4 {[%clk 0:02:21.1]}
14. Bxd4 {[%clk 0:02:17.8]} 14... Bb7 {[%clk 0:02:21.1]} 15. Rfd1 {[%clk
0:02:10.2]} 15... Rfd8 {[%clk 0:02:21.2]} 16. Bc3 {[%clk 0:02:10.5]} 16... Rac8
{[%clk 0:02:19.7]} 17. a4 {[%clk 0:02:07.6]} 17... a5 {[%clk 0:02:12.3]} 18.
Rac1 {[%clk 0:02:00.2]} 18... Kf8 {[%clk 0:02:03.7]} 19. b3 {[%clk 0:02:00.1]}
19... Ba3 {[%clk 0:01:55.2]} 20. Ra1 {[%clk 0:01:57.8]} 20... Bc5 {[%clk
0:01:54.8]} 21. Kf1 {[%clk 0:01:53.8]} 21... Ke8 {[%clk 0:01:52]} 22. h3 {[%clk
0:01:51.1]} 22... Ne4 {[%clk 0:01:46.2]} 23. Nxe4 {[%clk 0:01:47.8]} 23... Bxe4
{[%clk 0:01:47.1]} 24. Rdc1 {[%clk 0:00:56.9]} 24... f6 {[%clk 0:01:43.4]} 25.
Nf3 {[%clk 0:00:57.2]} 25... e5 {[%clk 0:01:30.5]} 26. Ne1 {[%clk 0:00:57.5]}
26... Rd7 {[%clk 0:01:26.3]} 27. Ra2 {[%clk 0:00:54.7]} 27... Rcd8 {[%clk
0:01:25.3]} 28. Re2 {[%clk 0:00:55.3]} 28... Bg6 {[%clk 0:01:06.2]} 29. f4
{[%clk 0:00:53.7]} 29... Rd1 {[%clk 0:00:46.1]} 30. Rxd1 {[%clk 0:00:43.8]}
30... Rxd1 {[%clk 0:00:47]} 31. fxe5 {[%clk 0:00:43.4]} 31... Bd3 {[%clk
0:00:47.3]} 32. exf6+ {[%clk 0:00:43.2]} 32... Kf7 {[%clk 0:00:47.2]} 33. fxg7
{[%clk 0:00:38.3]} 33... Rc1 {[%clk 0:00:44.6]} 34. Bd2 {[%clk 0:00:38.5]} 34...
Rb1 {[%clk 0:00:41.8]} 35. g4 {[%clk 0:00:26]} 35... Kxg7 {[%clk 0:00:39.2]} 36.
h4 {[%clk 0:00:26.3]} 36... Bb4 {[%clk 0:00:21.1]} 37. Bxb4 {[%clk 0:00:19.4]}
37... axb4 {[%clk 0:00:20.9]} 38. Kf2 {[%clk 0:00:11.8]} 38... Bxe2 {[%clk
0:00:21.3]} 39. Kxe2 {[%clk 0:00:12.7]} 39... Rxb3 {[%clk 0:00:22]} 40. Nd3
{[%clk 0:00:13.5]} 40... Kf6 {[%clk 0:00:20.5]} 41. Ke3 {[%clk 0:00:07.4]} 41...
Ra3 {[%clk 0:00:18.6]} 42. Kd4 {[%clk 0:00:07.9]} 42... b3 {[%clk 0:00:18.5]}
43. Nb2 {[%clk 0:00:08.3]} 43... Ra1 {[%clk 0:00:16.5]} 44. Kc3 {[%clk
0:00:07.3]} 44... Rh1 {[%clk 0:00:14.7]} 45. g5+ {[%clk 0:00:07.6]} 45... Ke6
{[%clk 0:00:14.5]} 46. Kxb3 {[%clk 0:00:07.5]} 46... Rxh4 {[%clk 0:00:15.2]} 47.
Kb4 {[%clk 0:00:05.9]} 47... Kd6 {[%clk 0:00:13.7]} 48. Nd3 {[%clk 0:00:04.5]}
48... Rg4 {[%clk 0:00:11.2]} 49. Kb5 {[%clk 0:00:04.1]} 49... Kc7 {[%clk
0:00:11.7]} 50. Nb4 {[%clk 0:00:03.2]} 50... Rxg5+ {[%clk 0:00:11.4]} 51. Ka6
{[%clk 0:00:03.4]} 51... Ra5# {[%clk 0:00:10.4]} 0-1

[Event "Late-Titled-Tuesday-Blitz-April-02-2024"]
[Site "Chess.com"]
[Date "2024.04.02"]
[Round "4"]
[White "Dhaydon19"]
[Black "biostatistician"]
[Result "0-1"]
[WhiteElo "2652"]
[BlackElo "2553"]
[TimeControl "180+1"]
[EndTime "14:38:01 PDT"]
[Termination "biostatistician won by checkmate"]

1. d4 {[%clk 0:02:50]} 1... Nf6 {[%clk 0:02:59.6]} 2. c4 {[%clk 0:02:46.9]} 2...
g6 {[%clk 0:02:59.8]} 3. Nf3 {[%clk 0:02:47]} 3... Bg7 {[%clk 0:03:00]} 4. g3
{[%clk 0:02:47.2]} 4... b6 {[%clk 0:03:00]} 5. Bg2 {[%clk 0:02:47.2]} 5... Bb7
{[%clk 0:03:00.9]} 6. O-O {[%clk 0:02:47.5]} 6... O-O {[%clk 0:03:01.3]} 7. Nc3
{[%clk 0:02:47.8]} 7... Ne4 {[%clk 0:03:01.4]} 8. Qd3 {[%clk 0:02:43]} 8... Nxc3
{[%clk 0:03:00.7]} 9. bxc3 {[%clk 0:02:43.2]} 9... c6 {[%clk 0:03:00.2]} 10. a4
{[%clk 0:02:41.6]} 10... Ba6 {[%clk 0:02:50.4]} 11. Nd2 {[%clk 0:02:38.5]} 11...
d5 {[%clk 0:02:47.9]} 12. Qc2 {[%clk 0:02:37.5]} 12... dxc4 {[%clk 0:02:46.3]}
13. Qa2 {[%clk 0:02:37.2]} 13... e5 {[%clk 0:02:38]} 14. e3 {[%clk 0:02:24.2]}
14... Qc7 {[%clk 0:02:28]} 15. Nxc4 {[%clk 0:02:21.6]} 15... Nd7 {[%clk
0:02:28.4]} 16. Rd1 {[%clk 0:02:20.2]} 16... Rfd8 {[%clk 0:02:22.2]} 17. Ba3
{[%clk 0:02:18.5]} 17... Nf8 {[%clk 0:02:08.6]} 18. Rac1 {[%clk 0:02:09]} 18...
Rac8 {[%clk 0:02:03.3]} 19. Nb2 {[%clk 0:01:59.6]} 19... Ne6 {[%clk 0:01:56.2]}
20. Nd3 {[%clk 0:01:56.9]} 20... c5 {[%clk 0:01:48.6]} 21. Nxe5 {[%clk 0:01:51]}
21... Bxe5 {[%clk 0:01:48.1]} 22. dxe5 {[%clk 0:01:51.1]} 22... Qxe5 {[%clk
0:01:48.1]} 23. c4 {[%clk 0:01:50.2]} 23... Rxd1+ {[%clk 0:01:33.9]} 24. Rxd1
{[%clk 0:01:48.4]} 24... Rd8 {[%clk 0:01:33.6]} 25. Rd5 {[%clk 0:01:47.8]} 25...
Qc3 {[%clk 0:01:29]} 26. Rxd8+ {[%clk 0:01:33.1]} 26... Nxd8 {[%clk 0:01:29.9]}
27. Bd5 {[%clk 0:01:31.5]} 27... Bb7 {[%clk 0:01:16.2]} 28. Qb2 {[%clk
0:01:27.4]} 28... Qxb2 {[%clk 0:01:02.7]} 29. Bxb2 {[%clk 0:01:27.2]} 29... Bxd5
{[%clk 0:01:02.6]} 30. cxd5 {[%clk 0:01:27.4]} 30... f5 {[%clk 0:01:02.3]} 31.
f3 {[%clk 0:01:26]} 31... Nf7 {[%clk 0:00:41.9]} 32. Kf2 {[%clk 0:01:16.3]}
32... Nd6 {[%clk 0:00:40.6]} 33. Be5 {[%clk 0:01:15.4]} 33... Nc4 {[%clk
0:00:40]} 34. Bc3 {[%clk 0:01:15.1]} 34... Nd6 {[%clk 0:00:34.9]} 35. Ke2 {[%clk
0:01:15.2]} 35... Kf7 {[%clk 0:00:34.4]} 36. Kd3 {[%clk 0:01:14.7]} 36... a6
{[%clk 0:00:30.1]} 37. e4 {[%clk 0:01:14.3]} 37... fxe4+ {[%clk 0:00:28.4]} 38.
fxe4 {[%clk 0:01:14.9]} 38... b5 {[%clk 0:00:29.3]} 39. e5 {[%clk 0:01:13.9]}
39... Nc4 {[%clk 0:00:21.5]} 40. h4 {[%clk 0:00:59.3]} 40... Ke7 {[%clk
0:00:17.9]} 41. Ke4 {[%clk 0:00:56.2]} 41... b4 {[%clk 0:00:16.3]} 42. Be1
{[%clk 0:00:35.5]} 42... b3 {[%clk 0:00:16.3]} 43. Bc3 {[%clk 0:00:36]} 43... b2
{[%clk 0:00:16.4]} 44. Bxb2 {[%clk 0:00:36.4]} 44... Nxb2 {[%clk 0:00:17.3]} 45.
e6 {[%clk 0:00:35.4]} 45... Kf6 {[%clk 0:00:15.8]} 46. g4 {[%clk 0:00:34.8]}
46... Nxa4 {[%clk 0:00:15.5]} 47. g5+ {[%clk 0:00:35.3]} 47... Ke7 {[%clk
0:00:15.7]} 48. Ke5 {[%clk 0:00:36]} 48... Nb6 {[%clk 0:00:14.9]} 49. d6+ {[%clk
0:00:36.2]} 49... Ke8 {[%clk 0:00:14.8]} 50. h5 {[%clk 0:00:32.9]} 50... gxh5
{[%clk 0:00:14.2]} 51. Kf6 {[%clk 0:00:32.9]} 51... h4 {[%clk 0:00:14.4]} 52.
Kg7 {[%clk 0:00:32.3]} 52... h3 {[%clk 0:00:14.3]} 53. Kxh7 {[%clk 0:00:33]}
53... h2 {[%clk 0:00:14.8]} 54. g6 {[%clk 0:00:33.5]} 54... h1=Q+ {[%clk
0:00:15.7]} 55. Kg7 {[%clk 0:00:33.8]} 55... c4 {[%clk 0:00:14.9]} 56. d7+
{[%clk 0:00:34.5]} 56... Nxd7 {[%clk 0:00:14.9]} 57. exd7+ {[%clk 0:00:34.4]}
57... Kxd7 {[%clk 0:00:15.8]} 58. Kg8 {[%clk 0:00:34.6]} 58... c3 {[%clk
0:00:16.1]} 59. g7 {[%clk 0:00:35.4]} 59... c2 {[%clk 0:00:16.5]} 60. Kf8 {[%clk
0:00:35.6]} 60... Qf3+ {[%clk 0:00:16.7]} 61. Kg8 {[%clk 0:00:35.6]} 61... c1=Q
{[%clk 0:00:17]} 62. Kh8 {[%clk 0:00:36.1]} 62... Qch1+ {[%clk 0:00:17.2]} 63.
Kg8 {[%clk 0:00:36.9]} 63... Qd5+ {[%clk 0:00:17.4]} 64. Kf8 {[%clk 0:00:37.6]}
64... Qhf3# {[%clk 0:00:17.6]} 0-1

[Event "Late-Titled-Tuesday-Blitz-April-02-2024"]
[Site "Chess.com"]
[Date "2024.04.02"]
[Round "4"]
[White "arenal72"]
[Black "cedchass2006"]
[Result "1-0"]
[WhiteElo "2603"]
[BlackElo "2420"]
[TimeControl "180+1"]
[EndTime "14:38:05 PDT"]
[Termination "arenal72 won by resignation"]

1. Nf3 {[%clk 0:02:59.7]} 1... d5 {[%clk 0:02:52.4]} 2. g3 {[%clk 0:02:59.6]}
2... Nf6 {[%clk 0:02:50.1]} 3. Bg2 {[%clk 0:02:59.3]} 3... e6 {[%clk 0:02:46.4]}
4. O-O {[%clk 0:02:58.7]} 4... Be7 {[%clk 0:02:33.2]} 5. d3 {[%clk 0:02:53.6]}
5... Nc6 {[%clk 0:02:30]} 6. Nbd2 {[%clk 0:02:50.6]} 6... e5 {[%clk 0:02:29.5]}
7. e4 {[%clk 0:02:48.2]} 7... O-O {[%clk 0:02:29.9]} 8. c3 {[%clk 0:02:44.5]}
8... dxe4 {[%clk 0:02:29.8]} 9. Nxe4 {[%clk 0:02:44.5]} 9... Nxe4 {[%clk
0:02:29.6]} 10. dxe4 {[%clk 0:02:45.4]} 10... Qxd1 {[%clk 0:02:29.4]} 11. Rxd1
{[%clk 0:02:46.3]} 11... Bg4 {[%clk 0:02:29.1]} 12. h3 {[%clk 0:02:46.3]} 12...
Be6 {[%clk 0:02:22.2]} 13. Ng5 {[%clk 0:02:38.6]} 13... Bxg5 {[%clk 0:02:16.4]}
14. Bxg5 {[%clk 0:02:37.3]} 14... f6 {[%clk 0:02:17.1]} 15. Be3 {[%clk
0:02:36.8]} 15... Rfd8 {[%clk 0:02:18]} 16. b3 {[%clk 0:02:32.6]} 16... b6
{[%clk 0:02:16.2]} 17. Bf1 {[%clk 0:02:30.6]} 17... a5 {[%clk 0:02:14.9]} 18.
Kg2 {[%clk 0:02:25.1]} 18... Rxd1 {[%clk 0:02:11.5]} 19. Rxd1 {[%clk 0:02:24.3]}
19... Rd8 {[%clk 0:02:12.4]} 20. Rxd8+ {[%clk 0:02:21.4]} 20... Nxd8 {[%clk
0:02:13.3]} 21. Bb5 {[%clk 0:02:19.3]} 21... Kf7 {[%clk 0:02:08.8]} 22. f4
{[%clk 0:02:17]} 22... exf4 {[%clk 0:02:06.1]} 23. Bxf4 {[%clk 0:01:40.1]} 23...
c6 {[%clk 0:02:04.4]} 24. Bd3 {[%clk 0:01:36.7]} 24... b5 {[%clk 0:01:57.6]} 25.
e5 {[%clk 0:01:26.8]} 25... f5 {[%clk 0:01:55.7]} 26. Kf3 {[%clk 0:01:19.1]}
26... Nb7 {[%clk 0:01:54.7]} 27. Bc2 {[%clk 0:01:15.1]} 27... Nc5 {[%clk
0:01:54.3]} 28. Be3 {[%clk 0:01:13.7]} 28... Na6 {[%clk 0:01:53.5]} 29. Bb6
{[%clk 0:01:08]} 29... a4 {[%clk 0:01:52.5]} 30. bxa4 {[%clk 0:01:01.9]} 30...
b4 {[%clk 0:01:32.1]} 31. Ba5 {[%clk 0:00:54.1]} 31... bxc3 {[%clk 0:01:06.9]}
32. Bxc3 {[%clk 0:00:55]} 32... g6 {[%clk 0:01:01.8]} 33. a3 {[%clk 0:00:52.7]}
33... Bd5+ {[%clk 0:01:02.1]} 34. Ke3 {[%clk 0:00:51.4]} 34... Ke6 {[%clk
0:01:02]} 35. a5 {[%clk 0:00:46.5]} 35... c5 {[%clk 0:01:01.4]} 36. Bd3 {[%clk
0:00:42.4]} 36... c4 {[%clk 0:00:59.1]} 37. Bc2 {[%clk 0:00:39.2]} 37... Bg2
{[%clk 0:00:55.1]} 38. h4 {[%clk 0:00:29.5]} 38... Nc5 {[%clk 0:00:37.9]} 39.
Bd4 {[%clk 0:00:26.7]} 39... Nb3 {[%clk 0:00:31.1]} 40. a6 {[%clk 0:00:25.7]}
40... Bc6 {[%clk 0:00:24.6]} 41. a7 {[%clk 0:00:23.6]} 41... h6 {[%clk
0:00:22.5]} 42. Bb6 {[%clk 0:00:20.6]} 42... g5 {[%clk 0:00:21.9]} 43. hxg5
{[%clk 0:00:18.9]} 43... hxg5 {[%clk 0:00:22.8]} 44. Bd8 {[%clk 0:00:18.6]}
44... Kxe5 {[%clk 0:00:17.1]} 45. Bxg5 {[%clk 0:00:18.2]} 45... Nd4 {[%clk
0:00:13.8]} 46. Bf6+ {[%clk 0:00:16.7]} 46... Kxf6 {[%clk 0:00:02.8]} 47. Kxd4
{[%clk 0:00:17.6]} 47... Kg5 {[%clk 0:00:02.2]} 48. Kxc4 {[%clk 0:00:17.8]}
48... Kg4 {[%clk 0:00:02]} 49. Kc5 {[%clk 0:00:17.9]} 49... Ba8 {[%clk
0:00:01.8]} 50. a4 {[%clk 0:00:17.9]} 50... Kxg3 {[%clk 0:00:02.7]} 51. Bxf5
{[%clk 0:00:17.4]} 51... Kf4 {[%clk 0:00:03.6]} 52. Bd7 {[%clk 0:00:17.1]} 52...
Ke5 {[%clk 0:00:04.5]} 53. Bc6 {[%clk 0:00:17.1]} 53... Bxc6 {[%clk 0:00:05]}
54. Kxc6 {[%clk 0:00:18]} 54... Kd4 {[%clk 0:00:05.5]} 55. a8=Q {[%clk
0:00:18.4]} 55... Kc4 {[%clk 0:00:06.4]} 56. a5 {[%clk 0:00:18.7]} 56... Kb4
{[%clk 0:00:07.3]} 57. a6 {[%clk 0:00:19.2]} 1-0